fUST/lending_fUST_20260117
["ID","MTS","AMOUNT","RATE_DAILY","PERIOD"]
[402293138,1768649499158,-500.0,0.00018356,3]
[402293139,1768649499168,-500.0,0.00018356,3]
[402293140,1768649499178,-500.0,0.00018356,3]
[402293141,1768649499187,-500.0,0.00018356,3]
[402293142,1768649499197,-500.0,0.00018356,3]
[402293143,1768649499207,-500.0,0.00018356,3]
[402293144,1768649499217,-887.98,0.00018356,3]
[402293145,1768649499226,-500.0,0.00018356,3]
[402293146,1768649499237,-842.12,0.00018356,3]
[402293147,1768649499246,-500.0,0.00018356,3]
[402293148,1768649499256,-500.0,0.00018356,3]
[402293149,1768649499266,-1511.79,0.00018356,3]
[402293150,1768649499275,-500.0,0.00018356,3]
[402293151,1768649499284,-604.79,0.00018356,3]
[402293152,1768649499294,-500.0,0.00018356,3]
[402293153,1768649499303,-500.0,0.00018356,3]
[402293154,1768649499312,-500.0,0.00018356,3]
[402293155,1768649499321,-1200.0,0.00018356,2]
[402293156,1768649499331,-745.23,0.00018356,3]
[402293157,1768649499341,-500.0,0.00018356,3]
[402293158,1768649499350,-500.0,0.00018356,3]
[402293159,1768649499359,-500.0,0.00018356,3]
[402293160,1768649499369,-500.0,0.00018356,3]
[402293161,1768649499378,-697.62,0.00018356,3]
[402293162,1768649499386,-500.0,0.00018356,3]
[402293163,1768649499396,-353.22,0.00018356,3]
[402293164,1768649499405,-618.2,0.00018356,3]
[402293165,1768649499415,-1774.68,0.00018356,3]
[402293166,1768649499424,-500.0,0.00018356,3]
[402293167,1768649499434,-942.63,0.00018356,3]
[402293168,1768649499444,-500.0,0.00018356,3]
[402293169,1768649499453,-500.0,0.00018356,3]
[402293170,1768649499463,-500.0,0.00018356,3]
[402293171,1768649499473,-1586.94,0.00018356,3]
[402293172,1768649499482,-500.0,0.00018356,3]
[402293173,1768649499492,-500.0,0.00018356,3]
[402293174,1768649499502,-500.0,0.00018356,3]
[402293175,1768649499511,-540.84,0.00018356,3]
[402293176,1768649499521,-1084.84,0.00018356,3]
[402293177,1768649499530,-500.0,0.00018356,3]
[402293178,1768649499539,-693.7,0.00018356,3]
[402293179,1768649499549,-500.0,0.00018356,3]
[402293180,1768649499559,-1859.94,0.00018356,3]
[402293181,1768649499568,-500.0,0.00018356,3]
[402293182,1768649499577,-500.0,0.00018356,3]
[402293183,1768649499587,-500.0,0.00018356,3]
[402293184,1768649499597,-500.0,0.00018356,3]
[402293185,1768649499606,-597.8010965,0.00018356,3]
[402293186,1768649499616,-500.0,0.00018356,3]
[402293187,1768649499626,-782.75,0.00018356,3]
[402293188,1768649499636,-752.05,0.00018356,3]
[402293189,1768649499645,-500.0,0.00018356,3]
[402293190,1768649499655,-500.0,0.00018356,3]
[402293191,1768649499665,-775.14,0.00018356,3]
[402293192,1768649499675,-2140.55,0.00018356,3]
[402293193,1768649499684,-500.0,0.00018356,3]
[402293194,1768649499694,-1600.91,0.00018356,3]
[402293195,1768649499703,-500.0,0.00018356,3]
[402293196,1768649499713,-500.0,0.00018356,3]
[402293197,1768649499723,-500.0,0.00018356,3]
[402293198,1768649499733,-500.0,0.00018356,3]
[402293199,1768649499742,-500.0,0.00018356,3]
[402293200,1768649499752,-500.0,0.00018356,3]
[402293201,1768649499761,-500.0,0.00018356,3]
[402293202,1768649499771,-540.2,0.00018356,3]
[402293203,1768649499785,-500.0,0.00018356,3]
[402293204,1768649499795,-691.55,0.00018356,3]
[402293205,1768649499804,-2007.96,0.00018356,3]
[402293206,1768649499815,-835.27,0.00018356,3]
[402293207,1768649499826,-1472.9,0.00018356,3]
[402293208,1768649499835,-1210.81,0.00018356,3]
[402293209,1768649499844,-500.0,0.00018356,3]
[402293210,1768649499853,-604.57,0.00018356,3]
[402293211,1768649499862,-500.0,0.00018356,3]
[402293212,1768649499872,-500.0,0.00018356,3]
[402293213,1768649499882,-1776.82,0.00018356,3]
[402293214,1768649499892,-500.0,0.00018356,3]
[402293215,1768649499901,-500.0,0.00018356,3]
[402293216,1768649499910,-582.22,0.00018356,3]
[402293217,1768649499920,-1240.14,0.00018356,3]
[402293218,1768649499930,-884.93,0.00018356,3]
[402293219,1768649499939,-500.0,0.00018356,3]
[402293220,1768649499949,-628.44,0.00018356,3]
[402293221,1768649499958,-500.0,0.00018356,3]
[402293222,1768649499968,-529.79,0.00018356,3]
[402293223,1768649499978,-500.0,0.00018356,3]
[402293224,1768649499988,-500.0,0.00018356,3]
[402293225,1768649499998,-500.0,0.00018356,3]
[402293226,1768649500007,-500.0,0.00018356,3]
[402293227,1768649500017,-500.0,0.00018356,3]
[402293228,1768649500026,-500.0,0.00018356,3]
[402293229,1768649500036,-511.03,0.00018356,3]
[402293230,1768649500045,-1076.17,0.00018356,3]
[402293231,1768649500055,-500.0,0.00018356,3]
[402293232,1768649500066,-1251.31,0.00018356,3]
[402293233,1768649500077,-993.75,0.00018356,3]
[402293234,1768649500087,-500.0,0.00018356,3]
[402293235,1768649500098,-592.17,0.00018356,3]
[402293236,1768649500108,-500.0,0.00018356,3]
[402293237,1768649500118,-1040.39,0.00018356,3]
[402293238,1768649500128,-1158.63,0.00018356,3]
[402293239,1768649500137,-500.0,0.00018356,3]
[402293240,1768649500146,-1446.98,0.00018356,3]
[402293241,1768649500155,-592.71890736,0.00018356,3]
[402293242,1768649500165,-553.77,0.00018356,3]
[402293243,1768649500174,-1160.93,0.00018356,3]
[402293244,1768649500183,-789.43,0.00018356,3]
[402293245,1768649500193,-781.61,0.00018356,3]
[402293246,1768649500203,-677.45,0.00018356,3]
[402293247,1768649500213,-1417.89,0.00018356,3]
[402293248,1768649500223,-500.0,0.00018356,3]
[402293249,1768649500233,-1042.85,0.00018356,3]
[402293250,1768649500242,-509.58,0.00018356,3]
[402293251,1768649500252,-882.89,0.00018356,3]
[402293252,1768649500261,-1329.23,0.00018356,3]
[402293253,1768649500271,-784.38,0.00018356,3]
[402293254,1768649500280,-952.33,0.00018356,3]
[402293255,1768649500290,-175.73098182,0.00018356,3]
[402293256,1768649500299,-936.94,0.00018356,3]
[402293257,1768649500311,-500.0,0.00018356,3]
[402293258,1768649500321,-500.0,0.00018356,3]
[402293259,1768649500332,-1708.14,0.00018356,3]
[402293260,1768649500344,-982.82,0.00018356,3]
[402293261,1768649500355,-500.0,0.00018356,3]
[402293262,1768649500364,-647.1,0.00018356,3]
[402293263,1768649500374,-593.22,0.00018356,3]
[402293264,1768649500383,-500.0,0.00018356,3]
[402293265,1768649500462,-550.51,0.00018356,3]
[402293266,1768649500471,-700.82,0.00018356,3]
[402293267,1768649500480,-500.0,0.00018356,3]
[402293268,1768649500490,-500.0,0.00018356,3]
[402293269,1768649500499,-500.0,0.00018356,3]
[402293270,1768649500508,-500.0,0.00018356,3]
[402293271,1768649500517,-500.0,0.00018356,3]
[402293272,1768649500527,-379.25255787,0.00018356,3]
[402293273,1768649500537,-500.0,0.00018356,3]
[402293274,1768649500547,-500.0,0.00018356,3]
[402293275,1768649500558,-500.0,0.00018356,3]
[402293276,1768649500568,-1436.34,0.00018356,3]
[402293277,1768649500578,-500.0,0.00018356,3]
[402293278,1768649500587,-588.13,0.00018356,3]
[402293279,1768649500598,-1686.51,0.00018356,3]
[402293280,1768649500608,-611.35197763,0.00018356,3]
[402293281,1768649500620,-500.0,0.00018356,3]
[402293282,1768649500629,-1458.01,0.00018356,3]
[402293283,1768649500640,-1003.45,0.00018356,3]
[402293284,1768649500650,-500.0,0.00018356,3]
[402293285,1768649500660,-2354.26,0.00018356,3]
[402293286,1768649500670,-500.0,0.00018356,3]
[402293287,1768649500680,-500.0,0.00018356,3]
[402293288,1768649500691,-1932.31,0.00018356,3]
[402293289,1768649500701,-1910.88,0.00018356,3]
[402293290,1768649500717,-904.86,0.00018356,3]
[402293291,1768649500726,-500.0,0.00018356,3]
[402293292,1768649500736,-742.45,0.00018356,3]
[402293293,1768649500745,-1293.83,0.00018356,3]
[402293294,1768649500755,-500.0,0.00018356,3]
[402293295,1768649500765,-501.96,0.00018356,3]
[402293296,1768649500774,-500.0,0.00018356,3]
[402293297,1768649500784,-1515.25,0.00018356,3]
[402293298,1768649500793,-500.0,0.00018356,3]
[402293299,1768649500803,-765.96,0.00018356,3]
[402293300,1768649500813,-771.05,0.00018356,3]
[402293301,1768649500823,-500.0,0.00018356,3]
[402293302,1768649500832,-1376.88,0.00018356,3]
[402293303,1768649500842,-500.0,0.00018356,3]
[402293304,1768649500852,-500.0,0.00018356,3]
[402293305,1768649500861,-500.0,0.00018356,3]
[402293306,1768649500871,-523.35,0.00018356,3]
[402293307,1768649500880,-500.0,0.00018356,3]
[402293308,1768649500890,-500.0,0.00018356,3]
[402293309,1768649500899,-1132.82,0.00018356,3]
[402293310,1768649500908,-500.0,0.00018356,3]
[402293311,1768649500917,-1546.28,0.00018356,3]
[402293312,1768649500927,-1000.0,0.00018356,2]
[402293313,1768649500936,-500.0,0.00018356,3]
[402293314,1768649500945,-500.0,0.00018356,3]
[402293315,1768649500954,-500.0,0.00018356,3]
[402293316,1768649500964,-563.8,0.00018356,3]
[402293317,1768649500973,-811.88,0.00018356,3]
[402293318,1768649500983,-2590.78,0.00018356,3]
[402293319,1768649500992,-500.0,0.00018356,3]
[402293320,1768649501002,-2047.3,0.00018356,3]
[402293321,1768649501012,-1579.55,0.00018356,3]
[402293322,1768649501021,-500.0,0.00018356,3]
[402293323,1768649501031,-500.0,0.00018356,3]
[402293324,1768649501040,-500.0,0.00018356,3]
[402293325,1768649501050,-512.66871378,0.00018356,3]
[402293326,1768649501060,-500.0,0.00018356,3]
[402293327,1768649501069,-500.0,0.00018356,3]
[402293328,1768649501079,-1222.94,0.00018356,3]
[402293329,1768649501088,-500.0,0.00018356,3]
[402293330,1768649501097,-500.0,0.00018356,3]
[402293331,1768649501107,-758.74,0.00018356,3]
[402293332,1768649501116,-500.0,0.00018356,3]
[402293333,1768649501125,-1366.17,0.00018356,3]
[402293334,1768649501136,-500.0,0.00018356,3]
[402293335,1768649501146,-500.0,0.00018356,3]
[402293336,1768649501156,-694.6,0.00018356,3]
[402293337,1768649501167,-817.66,0.00018356,3]
[402293338,1768649501176,-500.0,0.00018356,3]
[402293339,1768649501186,-1832.06,0.00018356,3]
[402293340,1768649501195,-593.12,0.00018356,3]
[402293341,1768649501204,-535.22,0.00018356,3]
[402293342,1768649501214,-592.02,0.00018356,3]
[402293343,1768649501224,-1387.56,0.00018356,3]
[402293344,1768649501235,-694.92,0.00018356,3]
[402293345,1768649501244,-3630.43,0.00018356,3]
[402293346,1768649501254,-577.36,0.00018356,3]
[402293347,1768649501263,-500.0,0.00018356,3]
[402293348,1768649501273,-1054.42,0.00018356,3]
[402293349,1768649501282,-500.0,0.00018356,3]
[402293350,1768649501291,-500.0,0.00018356,3]
[402293351,1768649501301,-500.0,0.00018356,3]
[402293352,1768649501311,-1391.15,0.00018356,3]
[402293353,1768649501321,-1048.64,0.00018356,3]
[402293354,1768649501334,-1108.81,0.00018356,3]
[402293355,1768649501343,-626.22,0.00018356,3]
[402293356,1768649501352,-606.76,0.00018356,3]
[402293357,1768649501362,-500.0,0.00018356,3]
[402293358,1768649501371,-799.6,0.00018356,3]
[402293359,1768649501381,-1462.53,0.00018356,3]
[402293360,1768649501390,-1638.57,0.00018356,3]
[402293361,1768649501400,-929.98,0.00018356,3]
[402293362,1768649501409,-500.0,0.00018356,3]
[402293363,1768649501419,-500.0,0.00018356,3]
[402293364,1768649501428,-671.14,0.00018356,3]
[402293365,1768649501438,-500.0,0.00018356,3]
[402293366,1768649501448,-1056.64,0.00018356,3]
[402293367,1768649501458,-980.65,0.00018356,3]
[402293368,1768649501467,-500.0,0.00018356,3]
[402293369,1768649501477,-500.0,0.00018356,3]
[402293370,1768649501486,-1813.35,0.00018356,3]
[402293371,1768649501496,-500.0,0.00018356,3]
[402293372,1768649501505,-1240.51,0.00018356,3]
[402293373,1768649501515,-1353.35,0.00018356,3]
[402293374,1768649501524,-500.0,0.00018356,3]
[402293375,1768649501534,-500.0,0.00018356,3]
[402293376,1768649501544,-1645.77,0.00018356,3]
[402293377,1768649501554,-892.73,0.00018356,3]
[402293378,1768649501563,-2044.1,0.00018356,3]
[402293379,1768649501573,-692.82,0.00018356,3]
[402293380,1768649501582,-500.0,0.00018356,3]
[402293381,1768649501592,-699.9,0.00018356,3]
[402293382,1768649501601,-568.79,0.00018356,3]
[402293383,1768649501611,-700.19,0.00018356,3]
[402293384,1768649501620,-500.0,0.00018356,3]
[402293385,1768649501630,-939.73,0.00018356,3]
[402293386,1768649501640,-1081.34,0.00018356,3]
[402293387,1768649501650,-500.0,0.00018356,3]
[402293388,1768649501659,-1177.76,0.00018356,3]
[402293389,1768649501668,-500.0,0.00018356,3]
[402293390,1768649501677,-611.38,0.00018356,3]
[402293391,1768649501687,-500.0,0.00018356,3]
[402293392,1768649501697,-500.0,0.00018356,3]
[402293393,1768649501706,-913.11,0.00018356,3]
[402293394,1768649501715,-500.0,0.00018356,3]
[402293395,1768649501724,-500.0,0.00018356,3]
[402293396,1768649501734,-1044.14,0.00018356,3]
[402293397,1768649501744,-500.0,0.00018356,3]
[402293398,1768649501753,-500.0,0.00018356,3]
[402293399,1768649501763,-622.86303291,0.00018356,3]
[402293400,1768649501772,-1326.69,0.00018356,3]
[402293401,1768649501784,-1255.88,0.00018356,3]
[402293402,1768649501794,-500.0,0.00018356,3]
[402293403,1768649501803,-500.0,0.00018356,3]
[402293404,1768649501813,-500.0,0.00018356,3]
[402293405,1768649501824,-500.0,0.00018356,3]
[402293406,1768649501834,-2815.19,0.00018356,3]
[402293407,1768649501844,-501.51,0.00018356,3]
[402293408,1768649501858,-1106.71,0.00018356,3]
[402293409,1768649501868,-500.0,0.00018356,3]
[402293410,1768649501878,-1559.59,0.00018356,3]
[402293411,1768649501887,-567.25,0.00018356,3]
[402293412,1768649501896,-1098.82,0.00018356,3]
[402293413,1768649501906,-503.22,0.00018356,3]
[402293414,1768649501916,-863.18,0.00018356,3]
[402293415,1768649501926,-1622.28,0.00018356,3]
[402293416,1768649501935,-500.0,0.00018356,3]
[402293417,1768649501945,-500.0,0.00018356,3]
[402293418,1768649501955,-500.0,0.00018356,3]
[402293419,1768649501965,-500.0,0.00018356,3]
[402293420,1768649501975,-500.0,0.00018356,3]
[402293421,1768649501985,-500.0,0.00018356,3]
[402293422,1768649501994,-1431.76,0.00018356,3]
[402293423,1768649502003,-8441.37,0.00018356,3]
[402293424,1768649502013,-500.0,0.00018356,3]
[402293425,1768649502023,-500.0,0.00018356,3]
[402293426,1768649502032,-500.0,0.00018356,3]
[402293427,1768649502044,-953.59,0.00018356,3]
[402293428,1768649502053,-500.0,0.00018356,3]
[402293429,1768649502063,-500.0,0.00018356,3]
[402293430,1768649502072,-1046.6,0.00018356,3]
[402293431,1768649502081,-2677.48,0.00018356,3]
[402293432,1768649502091,-500.0,0.00018356,3]
[402293433,1768649502100,-722.98,0.00018356,3]
[402293434,1768649502109,-523.8,0.00018356,3]
[402293435,1768649502119,-500.0,0.00018356,3]
[402293436,1768649502128,-500.0,0.00018356,3]
[402293437,1768649502138,-500.0,0.00018356,3]
[402293438,1768649502147,-1864.45,0.00018356,3]
[402293439,1768649502157,-980.47,0.00018356,3]
[402293440,1768649502178,-638.34,0.00018356,3]
[402293441,1768649502199,-500.0,0.00018356,3]
[402293442,1768649502214,-692.94,0.00018356,3]
[402293443,1768649502224,-500.0,0.00018356,3]
[402293444,1768649502233,-500.0,0.00018356,3]
[402293445,1768649502243,-822.95,0.00018356,3]
[402293446,1768649502252,-500.0,0.00018356,3]
[402293447,1768649502262,-500.0,0.00018356,3]
[402293448,1768649502271,-1239.92,0.00018356,3]
[402293449,1768649502280,-500.0,0.00018356,3]
[402293450,1768649502290,-348.04789676,0.00018356,3]
[402293451,1768649502300,-1628.03,0.00018356,3]
[402293452,1768649502310,-500.0,0.00018356,3]
[402293453,1768649502320,-604.11,0.00018356,3]
[402293454,1768649502330,-500.0,0.00018356,3]
[402293455,1768649502340,-772.16,0.00018356,3]
[402293456,1768649502350,-500.0,0.00018356,3]
[402293457,1768649502360,-500.0,0.00018356,3]
[402293458,1768649502370,-645.09,0.00018356,3]
[402293459,1768649502380,-2039.45,0.00018356,3]
[402293460,1768649502391,-500.0,0.00018356,3]
[402293461,1768649502400,-500.0,0.00018356,3]
[402293462,1768649502410,-500.0,0.00018356,3]
[402293463,1768649502420,-500.0,0.00018356,3]
[402293464,1768649502429,-782.18,0.00018356,3]
[402293465,1768649502439,-693.9,0.00018356,3]
[402293466,1768649502449,-500.0,0.00018356,3]
[402293467,1768649502458,-508.96,0.00018356,3]
[402293468,1768649502468,-875.55,0.00018356,3]
[402293469,1768649502477,-352.98387266,0.00018356,3]
[402293470,1768649502486,-500.0,0.00018356,3]
[402293471,1768649502496,-500.0,0.00018356,3]
[402293472,1768649502506,-1112.08,0.00018356,3]
[402293473,1768649502516,-1075.34,0.00018356,3]
[402293474,1768649502526,-1330.27,0.00018356,3]
[402293475,1768649502536,-500.0,0.00018356,3]
[402293476,1768649502546,-500.0,0.00018356,3]
[402293477,1768649502555,-500.0,0.00018356,3]
[402293478,1768649502565,-500.0,0.00018356,3]
[402293479,1768649502575,-784.27,0.00018356,3]
[402293480,1768649502585,-214.08,0.00018356,3]
[402293481,1768649502595,-785.13,0.00018356,3]
[402293482,1768649502604,-1777.27,0.00018356,3]
[402293483,1768649502614,-508.15,0.00018356,3]
[402293484,1768649502623,-1439.17,0.00018356,3]
[402293485,1768649502632,-578.09,0.00018356,3]
[402293486,1768649502642,-500.0,0.00018356,3]
[402293487,1768649502651,-976.59,0.00018356,3]
[402293488,1768649502661,-2433.28,0.00018356,3]
[402293489,1768649502671,-506.89,0.00018356,3]
[402293490,1768649502680,-500.0,0.00018356,3]
[402293491,1768649502690,-564.35,0.00018356,3]
[402293492,1768649502700,-500.0,0.00018356,3]
[402293493,1768649502709,-659.07,0.00018356,3]
[402293494,1768649502719,-562.57,0.00018356,3]
[402293495,1768649502729,-1186.93,0.00018356,3]
[402293496,1768649502739,-1786.2,0.00018356,3]
[402293497,1768649502748,-500.0,0.00018356,3]
[402293498,1768649502757,-643.39,0.00018356,3]
[402293499,1768649502767,-500.0,0.00018356,3]
[402293500,1768649502778,-612.1,0.00018356,3]
[402293501,1768649502789,-1089.71,0.00018356,3]
[402293502,1768649502799,-500.0,0.00018356,3]
[402293503,1768649502808,-500.0,0.00018356,3]
[402293504,1768649502818,-998.12,0.00018356,3]
[402293505,1768649502827,-1659.97,0.00018356,3]
[402293506,1768649502837,-500.0,0.00018356,3]
[402293507,1768649502847,-1699.56,0.00018356,3]
[402293508,1768649502857,-974.97,0.00018356,3]
[402293509,1768649502866,-733.19,0.00018356,3]
[402293510,1768649502876,-500.0,0.00018356,3]
[402293511,1768649502885,-1287.57,0.00018356,3]
[402293512,1768649502895,-1613.1,0.00018356,3]
[402293513,1768649502905,-1429.84,0.00018356,3]
[402293514,1768649502914,-1106.34,0.00018356,3]
[402293515,1768649502924,-561.1438134,0.00018356,3]
[402293516,1768649502933,-500.0,0.00018356,3]
[402293517,1768649502944,-1141.58,0.00018356,3]
[402293518,1768649502954,-500.0,0.00018356,3]
[402293519,1768649502964,-500.0,0.00018356,3]
[402293520,1768649502974,-500.0,0.00018356,3]
[402293521,1768649502984,-1806.23,0.00018356,3]
[402293522,1768649502995,-972.38,0.00018356,3]
[402293523,1768649503004,-2006.9,0.00018356,3]
[402293524,1768649503013,-1072.76,0.00018356,3]
[402293525,1768649503023,-500.0,0.00018356,3]
[402293526,1768649503033,-500.0,0.00018356,3]
[402293527,1768649503043,-1530.01,0.00018356,3]
[402293528,1768649503054,-999.91,0.00018356,3]
[402293529,1768649503063,-500.0,0.00018356,3]
[402293530,1768649503073,-500.0,0.00018356,3]
[402293531,1768649503083,-920.91,0.00018356,3]
[402293532,1768649503093,-500.0,0.00018356,3]
[402293533,1768649503103,-500.0,0.00018356,3]
[402293534,1768649503112,-849.02,0.00018356,3]
[402293535,1768649503121,-500.0,0.00018356,3]
[402293536,1768649503131,-306.16209203,0.00018356,3]
[402293537,1768649503140,-500.0,0.00018356,3]
[402293538,1768649503150,-500.0,0.00018356,3]
[402293539,1768649503160,-530.71,0.00018356,3]
[402293540,1768649503170,-500.0,0.00018356,3]
[402293541,1768649503180,-863.5,0.00018356,3]
[402293542,1768649503190,-1016.59,0.00018356,3]
[402293543,1768649503201,-500.0,0.00018356,3]
[402293544,1768649503213,-570.88,0.00018356,3]
[402293545,1768649503224,-500.0,0.00018356,3]
[402293546,1768649503235,-500.0,0.00018356,3]
[402293547,1768649503247,-1506.77,0.00018356,3]
[402293548,1768649503257,-500.0,0.00018356,3]
[402293549,1768649503268,-1003.52,0.00018356,3]
[402293550,1768649503278,-500.0,0.00018356,3]
[402293551,1768649503288,-595.91030795,0.00018356,3]
[402293552,1768649503299,-2338.27,0.00018356,3]
[402293553,1768649503310,-974.74,0.00018356,3]
[402293554,1768649503319,-500.0,0.00018356,3]
[402293555,1768649503329,-500.0,0.00018356,3]
[402293556,1768649503339,-617.9,0.00018356,3]
[402293557,1768649503351,-616.67576151,0.00018356,3]
[402293558,1768649503361,-741.6,0.00018356,3]
[402293559,1768649503370,-565.41,0.00018356,3]
[402293560,1768649503380,-871.62,0.00018356,3]
[402293561,1768649503390,-2020.66,0.00018356,3]
[402293562,1768649503400,-1482.88,0.00018356,3]
[402293563,1768649503410,-939.95,0.00018356,3]
[402293564,1768649503421,-500.0,0.00018356,3]
[402293565,1768649503432,-500.0,0.00018356,3]
[402293566,1768649503443,-426.38732043,0.00018356,3]
[402293567,1768649503453,-648.35428083,0.00018356,3]
[402293568,1768649503463,-680.35,0.00018356,3]
[402293569,1768649503472,-500.0,0.00018356,2]
[402293570,1768649503482,-500.0,0.00018356,3]
[402293571,1768649503493,-1254.59,0.00018356,3]
[402293572,1768649503505,-500.0,0.00018356,3]
[402293573,1768649503515,-500.0,0.00018356,3]
[402293574,1768649503526,-500.0,0.00018356,2]
[402293575,1768649503537,-199.93548987,0.00018383,7]
[402293576,1768649503548,-617.40005154,0.00018396,2]
[402293577,1768649503558,-2982.60894464,0.00018396,2]
[402293578,1768649503568,-558.56952716,0.00018487,42]
[402293579,1768649503579,-412.13348321,0.00018487,42]
[402293580,1768649503590,-500.0,0.0001852,2]
[402293581,1768649503601,-500.0,0.0001853,2]
[402293582,1768649503611,-275.1798858,0.00018579,48]
[402293583,1768649503622,-156517.54900771,0.000186,2]
[402293584,1768649504968,-162.7157165,0.00012956,2]
[402293585,1768649504978,-500.0,0.00012956,2]
[402293586,1768649504988,-34.28292589,0.00012956,2]
[402293587,1768649505290,-465.71707411,0.00012956,2]
[402293588,1768649505300,-449.81975282,0.00012956,2]
[402293589,1768649505312,-50.18024718,0.00012956,2]
[402293590,1768649505322,-500.0,0.00012956,2]
[402293591,1768649505331,-500.0,0.00012956,2]
[402293592,1768649505342,-500.0,0.00012956,2]
[402293593,1768649505353,-405.07800098,0.00012956,2]
[402293594,1768649505363,-131.13609044,0.00012956,2]
[402293595,1768649505685,-368.86390956,0.00012956,2]
[402293596,1768649505697,-610.49655483,0.00012956,2]
[402293597,1768649505707,-487.42886271,0.00012956,2]
[402293598,1768649505719,-12.57113729,0.00012956,2]
[402293599,1768649505728,-500.0,0.00012956,2]
[402293600,1768649505740,-489.60339968,0.00012956,2]
[402293601,1768649560559,155.0,2e-05,2]
[402293604,1768650238886,-4933.41328816,0.00012225,2]
[402293629,1768650631978,-5000.0,0.00011653,2]
[402293631,1768650631988,-268.40390066,0.00011711,2]
[402293633,1768650631997,-1200.0,0.0001177,2]
[402293635,1768650632007,-586.0,0.00011771,2]
[402293637,1768650632016,-175.8128247,0.0001189,2]
[402293639,1768650632025,-300.0,0.00012695,2]
[402293641,1768650632035,-286.5314506,0.00012696,2]
[402293643,1768650632044,-625.86893231,0.00012696,2]
[402293645,1768650632053,-500.0,0.00012696,2]
[402293647,1768650632063,-500.0,0.00012696,2]
[402293649,1768650632072,-500.0,0.00012696,2]
[402293651,1768650632083,-482.40090787,0.00012696,2]
[402293653,1768650632092,-500.0,0.00012696,2]
[402293655,1768650632101,-500.0,0.00012696,2]
[402293656,1768650632111,-500.0,0.00012696,2]
[402293658,1768650632121,-500.0,0.00012696,2]
[402293660,1768650632130,-500.0,0.00012696,2]
[402293662,1768650632140,-500.0,0.00012696,2]
[402293663,1768650632149,-300.66010198,0.00012696,2]
[402293664,1768650632158,-500.0,0.00012696,2]
[402293665,1768650632167,-500.0,0.00012696,2]
[402293666,1768650632177,-500.0,0.00012696,2]
[402293667,1768650632186,-500.0,0.00012696,2]
[402293668,1768650632195,-500.0,0.00012696,2]
[402293669,1768650632203,-500.0,0.00012696,2]
[402293670,1768650632213,-268.23679918,0.00012696,2]
[402293671,1768650632224,-191.37801853,0.00012696,2]
[402293672,1768650632233,-500.0,0.00012696,2]
[402293673,1768650632242,-500.0,0.00012696,2]
[402293675,1768650632253,-500.0,0.00012696,2]
[402293677,1768650632264,-500.0,0.00012696,2]
[402293679,1768650632273,-500.0,0.00012696,2]
[402293681,1768650632283,-500.0,0.00012696,2]
[402293683,1768650632294,-500.0,0.00012696,2]
[402293685,1768650632304,-500.0,0.00012696,2]